fUSD/lending_fUSD_20260315
["ID","MTS","AMOUNT","RATE_DAILY","PERIOD"]
[408429637,1773599510111,-968.89810925,0.00049999,120]
[408429638,1773599510120,-968.89810925,0.00049999,120]
[408429639,1773599510130,-968.89810925,0.00049999,120]
[408429640,1773599510140,-968.89810925,0.00049999,120]
[408429641,1773599510150,-968.89810925,0.00049999,120]
[408429642,1773599510159,-968.89810925,0.00049999,120]
[408429643,1773599510169,-968.89810925,0.00049999,120]
[408429644,1773599510180,-968.89810925,0.00049999,120]
[408429645,1773599510190,-968.89810925,0.00049999,120]
[408429646,1773599510201,-968.89810925,0.00049999,120]
[408429647,1773599510211,-968.89810925,0.00049999,120]
[408429648,1773599510221,-968.89810925,0.00049999,120]
[408429649,1773599510231,-968.89810925,0.00049999,120]
[408429650,1773599510242,-968.89810925,0.00049999,120]
[408429651,1773599510253,-968.89810925,0.00049999,120]
[408429652,1773599510262,-968.89810925,0.00049999,120]
[408429653,1773599510272,-968.89810925,0.00049999,120]
[408429654,1773599510282,-968.89810925,0.00049999,120]
[408429655,1773599510292,-968.89810925,0.00049999,120]
[408429656,1773599510302,-968.89810925,0.00049999,120]
[408429657,1773599510311,-968.89810925,0.00049999,120]
[408429658,1773599510321,-968.89810925,0.00049999,120]
[408429659,1773599510332,-968.89810925,0.00049999,120]
[408429660,1773599510341,-968.89810925,0.00049999,120]
[408429661,1773599510352,-968.89810925,0.00049999,120]
[408429662,1773599510362,-968.89810925,0.00049999,120]
[408429663,1773599510372,-968.89810925,0.00049999,120]
[408429664,1773599510382,-968.89810925,0.00049999,120]
[408429665,1773599510391,-968.89810925,0.00049999,120]
[408429666,1773599510401,-968.89810925,0.00049999,120]
[408429667,1773599510411,-968.89810925,0.00049999,120]
[408429668,1773599510421,-968.89810925,0.00049999,120]
[408429669,1773599510431,-1024.10154421,0.00049999,120]
[408429670,1773599510440,-1024.10154421,0.00049999,120]
[408429671,1773599510449,-1024.10154421,0.00049999,120]
[408429672,1773599510459,-1024.10154421,0.00049999,120]
[408429673,1773599510468,-1024.10154421,0.00049999,120]
[408429674,1773599510478,-1024.10154421,0.00049999,120]
[408429675,1773599510488,-1024.10154421,0.00049999,120]
[408429676,1773599510498,-1024.10154421,0.00049999,120]
[408429677,1773599510508,-1024.10154421,0.00049999,120]
[408429678,1773599510517,-1024.10154421,0.00049999,120]
[408429679,1773599510527,-1024.10154421,0.00049999,120]
[408429680,1773599510538,-1024.10154421,0.00049999,120]
[408429681,1773599510547,-1024.10154421,0.00049999,120]
[408429682,1773599510557,-1024.10154421,0.00049999,120]
[408429683,1773599510567,-1024.10154421,0.00049999,120]
[408429684,1773599510577,-1024.10154421,0.00049999,120]
[408429685,1773599510586,-1024.10154421,0.00049999,120]
[408429686,1773599510596,-200.0,0.00049999,120]
[408429687,1773599510605,-1000.0,0.0005,120]
[408429688,1773599510726,-3877.22122308,0.0005,120]
[408429689,1773599510737,-427537.28672781,0.0005,69]
[408429690,1773599510747,-2000977.0,0.0005,80]
[408429691,1773599510757,-2000000.0,0.0005,100]
[408429692,1773599510767,-2000000.0,0.0005,100]
[408429693,1773599510777,-870302.03290661,0.0005,95]
[408429694,1773599511393,-469.87233333,0.00032542,30]
[408429695,1773599511402,-8663.96,0.00039368,10]
[408429696,1773599511411,-3776.16739925,0.00040179,60]
[408429707,1773600556095,-251.02,0.00016632,2]
[408429708,1773600556116,-208.68237379,0.00016716,2]
[408429709,1773600556137,-195.0,0.00016724,2]
[408429710,1773600556157,-481.97455444,0.00016724,2]
[408429713,1773600631292,-561.36,0.00016724,2]
[408429714,1773600631303,-1456.66544556,0.00016724,2]
[408429715,1773600631312,-2337.9457261,0.00016724,2]
[408429716,1773600631346,-162.0542739,0.00016724,2]
[408429717,1773600631358,-291.0,0.00016724,2]
[408429718,1773600631368,-195.0,0.0001677,2]
[408429719,1773600631377,-250.0,0.00016816,2]
[408429720,1773600631386,-217.28453634,0.00016963,2]
[408429721,1773600631400,-2282.71546366,0.00016963,2]
[408429722,1773600631410,-518.0,0.00017,2]
[408429723,1773600631419,-518.0,0.00017,2]
[408429724,1773600631429,-1200.0,0.00017068,2]
[408429725,1773600631441,-3.27361072,0.00017301,2]
[408429726,1773600631452,-246.72638928,0.00017301,2]
[408429727,1773600631461,-251.02,0.00017507,2]
[408429728,1773600631471,-202.30361072,0.00018295,2]
[408429729,1773600631482,-47.69638928,0.00018295,2]
[408429730,1773600631492,-184.25848254,0.00018295,2]
[408429731,1773600631502,-2282.44448332,0.00018295,2]
[408429733,1773600631512,-195.0,0.00018295,2]
[408429735,1773600631521,-2500.0,0.00018295,2]
[408429736,1773600631537,-252.57608192,0.00018295,2]
[408429739,1773600631552,-600.0,0.00018295,2]
[408429740,1773600631562,-251.02,0.00018382,2]
[408429742,1773600631571,-300.0,0.00018396,2]
[408429744,1773600631581,-195.0,0.00018396,2]
[408429746,1773600631590,-2500.0,0.00018396,2]
[408429748,1773600631600,-500.0,0.000186,2]
[408429750,1773600631609,-500.0,0.000186,2]
[408429752,1773600631618,-500.0,0.000186,2]
[408429754,1773600631627,-500.0,0.000186,2]
[408429756,1773600631636,-500.0,0.000186,2]
[408429758,1773600631645,-500.0,0.000186,2]
[408429760,1773600631655,-500.0,0.000186,2]
[408429762,1773600631664,-724.863084,0.000186,2]
[408429764,1773600631674,-1680.0,0.00018734,2]
[408429765,1773600631683,-251.02,0.00019258,2]
[408429766,1773600631693,-897.65889154,0.000195,2]
[408429767,1773600631703,-2000.0,0.000196,2]
[408429768,1773600631712,-2000.0,0.000197,2]
[408429769,1773600631722,-2000.0,0.000198,2]
[408429770,1773600631732,-2000.0,0.000199,2]
[408429771,1773600631742,-251.02,0.00020133,2]
[408429772,1773600631752,-1942.0,0.00020561,2]
[408429773,1773600631761,-251.02,0.00021008,2]
[408429774,1773600631770,-500.0,0.00021725,2]
[408429775,1773600631780,-584.42974455,0.00021725,2]
[408429776,1773600631789,-500.0,0.00021725,2]
[408429777,1773600631798,-251.02,0.00021884,2]
[408429778,1773600631808,-500.0,0.00022273,2]
[408429779,1773600631820,-251.02,0.00022759,2]
[408429780,1773600631828,-166.66,0.00023533,30]
[408429781,1773600631838,-251.02,0.00023634,2]
[408429782,1773600631848,-1500.0,0.00023948,2]
[408429783,1773600631859,-166.66,0.00024029,30]
[408429784,1773600631870,-251.02,0.0002451,2]
[408429785,1773600631879,-166.66,0.00024524,30]
[408429786,1773600631888,-181.52,0.00024616,2]
[408429787,1773600631899,-154.71,0.00024622,2]
[408429788,1773600631909,-296.03,0.00024747,2]
[408429789,1773600631919,-500.0,0.00025,30]
[408429790,1773600631930,-500.0,0.00025,30]
[408429791,1773600631940,-500.0,0.00025,30]
[408429792,1773600631949,-500.0,0.00025,30]
[408429793,1773600631958,-500.0,0.00025,30]
[408429794,1773600631967,-500.0,0.00025,30]
[408429795,1773600631976,-500.0,0.00025,30]
[408429796,1773600631986,-500.0,0.00025,30]
[408429797,1773600631996,-500.0,0.00025,30]
[408429798,1773600632005,-500.0,0.00025,30]
[408429799,1773600632014,-500.0,0.00025,30]
[408429800,1773600632024,-500.0,0.00025,30]
[408429801,1773600632034,-500.0,0.00025,30]
[408429802,1773600632045,-500.0,0.00025,30]
[408429803,1773600632055,-500.0,0.00025,30]
[408429804,1773600632064,-166.66,0.0002502,30]
[408429805,1773600632073,-251.02,0.00025385,2]
[408429806,1773600632084,-181.52,0.00025437,2]
[408429807,1773600632093,-166.66,0.00025515,30]
[408429808,1773600632103,-166.66,0.00026011,30]
[408429809,1773600632112,-166.66,0.0002619,2]
[408429810,1773600632121,-181.52,0.00026258,2]
[408429811,1773600632130,-251.02,0.0002626,2]
[408429812,1773600632139,-150.0,0.00026998,2]
[408429813,1773600632149,-166.66,0.00027054,2]
[408429814,1773600632159,-181.52,0.00027078,2]
[408429815,1773600632168,-251.02,0.00027136,2]
[408429816,1773600632178,-151.0,0.00027363,2]
[408429817,1773600632187,-151.0,0.00027363,2]
[408429818,1773600632197,-197.65765567,0.00027363,2]
[408429819,1773600632207,-154.71,0.000277,120]
[408429820,1773600632216,-166.66,0.00027919,2]
[408429821,1773600632225,-251.02,0.00028011,2]
[408429822,1773600632235,-469.87233333,0.00028367,2]
[408429823,1773600632244,-259.84168164,0.00028587,2]
[408429824,1773600632254,-7646.67654918,0.00028629,2]
[408429825,1773600632267,-437.436765,0.00028629,2]
[408429836,1773600637375,-965.60128741,0.00028629,2]
[408429837,1773600637429,-1020.29583807,0.00028629,2]
[408429838,1773600637442,-1740.2400593,0.00028629,2]
[408429839,1773600637453,-504.76306316,0.00028629,2]
[408429840,1773600637464,-578.2510812,0.00028629,2]
[408429841,1773600637475,-3895.51691732,0.00028629,2]
[408429842,1773600637486,-1302.09109384,0.00028629,2]
[408429843,1773600637497,-888.5671607,0.00028629,2]
[408429844,1773600637508,-17292.88178482,0.00028629,2]
[408429845,1773600637520,-1043.0,0.00028654,2]
[408429846,1773600637529,-3755.0,0.00028654,2]
[408429847,1773600637540,-469.87233333,0.00028719,10]
[408429848,1773600637549,-8663.96,0.00028719,10]
[408429849,1773600637560,-1002.24584653,0.00028728,2]
[408429850,1773600637571,-210.8831,0.00028729,2]
[408429851,1773600637581,-2500.0,0.00028729,2]
[408429852,1773600637590,-166.66,0.00028784,2]
[408429853,1773600637600,-433.66808291,0.00028828,2]
[408429854,1773600637611,-500.0,0.00028828,2]
[408429855,1773600637622,-500.0,0.00028828,2]
[408429856,1773600637632,-500.0,0.00028828,2]
[408429857,1773600637641,-500.0,0.00028828,2]
[408429858,1773600637651,-500.0,0.00028828,2]
[408429859,1773600637660,-500.0,0.00028828,2]
[408429860,1773600637669,-500.0,0.00028828,2]
[408429861,1773600637678,-500.0,0.00028828,2]
[408429862,1773600637688,-500.0,0.00028828,2]
[408429863,1773600637697,-500.0,0.00028828,2]
[408429865,1773600637707,-500.0,0.00028828,2]
[408429866,1773600637716,-500.0,0.00028828,2]
[408429867,1773600637726,-500.0,0.00028828,2]
[408429868,1773600637738,-500.0,0.00028828,2]
[408429869,1773600637748,-500.0,0.00028828,2]
[408429870,1773600637757,-500.0,0.00028828,2]
[408429871,1773600637767,-533.05676049,0.00028828,2]
[408429872,1773600637776,-500.0,0.00028828,2]
[408429873,1773600637785,-500.0,0.00028828,2]
[408429874,1773600637794,-22530.51498334,0.00028829,2]
[408429875,1773600637806,-435.51901776,0.00028829,2]
[408429876,1773600637820,-347.32,0.00028829,2]
[408429877,1773600637831,-15713.42564278,0.00028829,2]
[408429886,1773600639603,-2522.48116495,0.00028829,2]
[408429891,1773600639658,-80959.87599117,0.00028829,2]
[408429892,1773600639668,-251.02,0.00028886,2]
[408429893,1773600639677,-1001.0,0.00028961,10]
[408429894,1773600639686,-9519.0,0.00028961,10]
[408429895,1773600639695,-2000.0,0.00029135,120]
[408429896,1773600639704,-500.0,0.00029541,2]
[408429897,1773600639714,-166.66,0.00029648,2]
[408429898,1773600639723,-251.02,0.00029762,2]
[408429899,1773600639732,-172.37,0.00030411,120]
[408429900,1773600639742,-166.66,0.00030513,2]
[408429901,1773600639751,-251.02,0.00030637,2]
[408429902,1773600639761,-154.71,0.00030777,120]
[408429903,1773600639770,-251.02,0.00031512,2]
[408429904,1773600639779,-500.0,0.00031653,7]
[408429905,1773600639788,-524.24576923,0.00031653,7]
[408429906,1773600639798,-505.11042476,0.00031653,7]
[408429907,1773600639807,-502.29808326,0.00031653,7]
[408429908,1773600639816,-161.89,0.00031888,14]
[408429909,1773600639825,-500.0,0.00031999,7]
[408429910,1773600639834,-198.54437559,0.00032,120]
[408429911,1773600639843,-317.00617826,0.00032,120]
[408429912,1773600639853,-173.15450884,0.00032,120]
[408429913,1773600639863,-173.27934102,0.00032,120]
[408429914,1773600639872,-195.41167154,0.00032,120]
[408429915,1773600639881,-175.69927254,0.00032,120]
[408429916,1773600639891,-161.9,0.00032162,14]
[408429917,1773600639900,-251.02,0.00032388,2]
[408429918,1773600639909,-1000.0,0.00032441,2]
[408429919,1773600639919,-505.95,0.00032542,2]
[408429920,1773600639928,-317.00617826,0.00033,120]
[408429921,1773600639937,-173.15450884,0.00033,120]
[408429922,1773600639947,-173.27934102,0.00033,120]
[408429923,1773600639956,-195.41167154,0.00033,120]
[408429924,1773600639965,-175.69927254,0.00033,120]
[408429925,1773600639974,-251.02,0.00033263,2]
[408429926,1773600639983,-154.71,0.00033855,120]
[408429927,1773600639992,-317.00617826,0.000339,120]
[408429928,1773600640001,-173.15450884,0.000339,120]
[408429929,1773600640011,-173.27934102,0.000339,120]
[408429930,1773600640020,-195.41167154,0.000339,120]
[408429931,1773600640029,-175.69927254,0.000339,120]
[408429932,1773600640039,-317.00617826,0.00035,120]
[408429933,1773600640048,-173.27934102,0.00035,120]
[408429934,1773600640058,-195.41167154,0.00035,120]
[408429935,1773600640067,-500.0,0.00035616,7]
[408429936,1773600640076,-291.17076125,0.00035616,7]
[408429937,1773600640087,-317.00617826,0.00036,120]
[408429938,1773600640096,-163.46633333,0.00036899,30]
[408429939,1773600640106,-163.46633333,0.00036902,30]
[408429940,1773600640115,-294.464,0.00036915,30]
[408429941,1773600640124,-154.71,0.00036933,120]
[408429942,1773600640134,-1752.231,0.0003902,53]
[408429943,1773600640143,-208.430156,0.00039841,21]
[408429944,1773600640153,-7437.5053,0.00039978,2]
[408429945,1773600640162,-2000.0,0.0004,30]
[408429946,1773600640174,-469.87233333,0.0004,30]
[408429947,1773600640184,-505.95,0.00040177,2]
[408429949,1773600640193,-505.95,0.00040177,2]
[408429951,1773600640202,-3334.0,0.000402,5]
[408429953,1773600640211,-200.0,0.000402,10]
[408429955,1773600640223,-266.87818502,0.00040232,120]
[408429957,1773600640232,-505.95,0.0004025,2]
[408429959,1773600640241,-505.95,0.0004025,2]
[408429964,1773600640274,-505.95,0.00040299,2]
[408429965,1773600640287,-505.95,0.00040299,2]
[408429966,1773600640297,-505.95,0.00040299,2]
[408429967,1773600640306,-300.0,0.000403,10]
[408429968,1773600640316,-505.95,0.00040546,2]
[408429969,1773600640327,-505.95,0.00040546,2]
[408429970,1773600640337,-505.95,0.00040546,2]
[408429971,1773600640347,-505.95,0.00040546,2]
[408429972,1773600640359,-505.95,0.00040546,2]
[408429973,1773600640368,-500.0,0.00040547,7]
[408429974,1773600640378,-500.0,0.00040547,7]
[408429975,1773600640387,-500.0,0.00040547,7]
[408429976,1773600640397,-500.0,0.00040547,7]
[408429977,1773600640406,-500.0,0.00040547,7]
[408429978,1773600640418,-500.0,0.00040547,7]
[408429979,1773600640434,-500.0,0.00040547,7]
[408429980,1773600640443,-526.31738124,0.00040547,7]
[408429981,1773600640453,-505.95,0.00040794,2]
[408429982,1773600640462,-505.95,0.00040837,2]
[408429983,1773600640472,-5800.0,0.000409,14]
[408429984,1773600640482,-505.95,0.00040997,2]
[408429985,1773600640491,-505.95,0.00040998,2]
[408429986,1773600640500,-505.95,0.00040998,2]
[408429987,1773600640510,-505.95,0.00040999,2]
[408429988,1773600640519,-505.95,0.00040999,2]
[408429989,1773600640528,-505.95,0.00040999,2]
[408429990,1773600640537,-505.95,0.00040999,2]
[408429991,1773600640546,-505.95,0.00040999,2]
[408429992,1773600640555,-505.95472267,0.00040999,2]
[408429993,1773600640565,-150.0,0.00041,2]
[408429994,1773600640574,-3000.0,0.00041,30]
[408429995,1773600640583,-672.0,0.00041,30]
[408429996,1773600640592,-500.0,0.00041553,2]
[408429997,1773600640601,-1852.42,0.00041553,2]
[408429998,1773600640610,-177.91879002,0.00041818,120]
[408429999,1773600640620,-3154.0,0.00042,30]
[408430000,1773600640629,-150.0,0.000427,2]
[408430001,1773600640638,-1941.4656,0.00042827,2]
[408430002,1773600640647,-349.999999,0.00042841,2]
[408430003,1773600640657,-1085.8613559,0.00042841,2]
[408430004,1773600640666,-300.0,0.00042841,2]
[408430005,1773600640676,-303.27169845,0.00042841,2]
[408430006,1773600640685,-300.0,0.00042841,2]
[408430007,1773600640695,-300.0,0.00042841,2]
[408430008,1773600640704,-307.09317041,0.00042841,2]
[408430009,1773600640713,-857.47271976,0.00042841,2]
[408430010,1773600640722,-308.36419653,0.00042841,2]
[408430011,1773600640731,-300.0,0.00042841,2]
[408430012,1773600640741,-460.10536322,0.00042841,2]
[408430013,1773600640750,-300.00000001,0.00042841,2]
[408430014,1773600640760,-448.21273408,0.00042841,2]
[408430015,1773600640769,-302.45218568,0.00042841,2]
[408430016,1773600640778,-520.42881649,0.00042841,2]
[408430017,1773600640789,-307.31607308,0.00042841,2]
[408430018,1773600640798,-300.0,0.00042841,2]
[408430019,1773600640807,-303.27169844,0.00042841,2]
[408430020,1773600640817,-300.0,0.00042841,2]
[408430021,1773600640826,-349.56576157,0.00042841,2]
[408430022,1773600640835,-300.0,0.00042841,2]
[408430023,1773600640844,-3000.0,0.00043,30]
[408430024,1773600640854,-1941.4656,0.00043898,2]
[408430025,1773600640864,-3000.0,0.00044,30]
[408430026,1773600640873,-1000.0,0.00044,30]
[408430027,1773600640882,-1941.4656,0.00044968,2]
[408430028,1773600640893,-763.49,0.00045,30]
[408430029,1773600640903,-459.01358939,0.00045208,15]
[408430030,1773600640913,-259.56,0.000465,30]
[408430031,1773600640923,-161.8,0.000468,30]
[408430032,1773600640933,-1046.38763008,0.00047,30]
[408430033,1773600640942,-259.56,0.000472,30]
[408430034,1773600640954,-639.67527518,0.00047221,120]
[408430035,1773600640966,-763.49,0.0004725,30]
[408430036,1773600640978,-459.01358939,0.00047554,15]
[408430037,1773600640987,-314.74,0.00047586,120]
[408430038,1773600640996,-314.74,0.00047586,120]
[408430039,1773600641005,-500.0,0.00047586,120]
[408430040,1773600641015,-200.0,0.00047586,10]
[408430041,1773600641024,-300.0,0.00047586,10]
[408430042,1773600641032,-50984.13509384,0.00047586,120]
[408430043,1773600641041,-590.4,0.00047674,120]
[408430044,1773600641051,-160.0,0.00047674,120]
[408430045,1773600641061,-469.87233333,0.00047674,120]
[408430046,1773600641070,-259.56,0.000479,30]
[408430047,1773600641079,-500.0,0.00048355,60]
[408430048,1773600641088,-500.0,0.00048355,60]
[408430049,1773600641098,-500.0,0.00048355,60]
[408430050,1773600641107,-415.93150489,0.00048367,2]
[408430051,1773600641116,-161.8,0.000484,30]
[408430052,1773600641125,-518.0,0.000485,31]
[408430053,1773600641134,-259.56,0.000486,30]
[408430054,1773600641143,-160.55404297,0.000489,120]
[408430055,1773600641152,-160.55404297,0.000489,120]
[408430056,1773600641162,-160.55404297,0.000489,120]
[408430057,1773600641170,-160.55404297,0.000489,120]
[408430058,1773600641179,-160.55404297,0.000489,120]
[408430059,1773600641188,-160.55404297,0.000489,120]
[408430060,1773600641199,-160.55404297,0.000489,120]
[408430061,1773600641208,-160.55404297,0.000489,120]
[408430062,1773600641217,-160.55404297,0.000489,120]
[408430063,1773600641226,-160.55404297,0.000489,120]
[408430064,1773600641239,-160.55404297,0.000489,120]
[408430065,1773600641248,-160.55404297,0.000489,120]
[408430066,1773600641257,-350.0,0.00049,120]
[408430067,1773600641267,-2183.67,0.00049,120]
[408430068,1773600641277,-415.93150489,0.00049177,2]
[408430069,1773600641290,-2183.67,0.00049198,120]
[408430070,1773600641301,-259.56,0.000493,30]
[408430071,1773600641310,-2183.67,0.00049396,120]
[408430072,1773600641319,-160.0,0.000494,120]
[408430073,1773600641330,-469.87233333,0.000494,120]
[408430074,1773600641339,-625.93951994,0.00049451,60]
[408430075,1773600641349,-500.0,0.00049451,60]
[408430076,1773600641360,-500.0,0.00049451,60]
[408430077,1773600641369,-1245.61834229,0.00049487,120]
[408430078,1773600641377,-2183.67,0.00049594,120]
[408430079,1773600641387,-763.49,0.00049613,30]
[408430080,1773600641396,-2183.67,0.00049792,120]
[408430081,1773600641406,-308.20445135,0.00049797,2]
[408430082,1773600641414,-308.20445133,0.00049818,2]
[408430083,1773600641424,-308.20445133,0.00049838,2]
[408430084,1773600641433,-344.09250246,0.0004985,120]
[408430085,1773600641443,-308.20445133,0.00049859,2]
[408430086,1773600641452,-2386.1175625,0.00049867,15]
[408430087,1773600641463,-2386.1175625,0.00049878,15]
[408430088,1773600641472,-308.20445133,0.00049879,2]
[408430089,1773600641481,-2386.1175625,0.00049889,15]
[408430090,1773600641491,-580991.59061873,0.00049895,7]
[408430091,1773600641554,-260.34012624,0.00049895,7]
[408430099,1773600642463,-1214.0,0.00028654,2]
[408430100,1773600642472,-1207.20113816,0.00028819,10]
[408430101,1773600642720,-1280.69488742,0.00028819,10]
[408430102,1773600642731,-4504.02468042,0.00028819,10]
[408430352,1773600645315,-228.049294,0.00028819,10]
[408430355,1773600645326,-163.418,0.00031654,2]
[408430357,1773600645336,-234.483925,0.00039178,21]
[408430359,1773600645346,-469.87233333,0.00043,30]
[408430361,1773600645356,-9122.0,0.00049895,60]
[408430363,1773600645367,-751.0,0.00049895,60]
[408430365,1773600645376,-1940.87986947,0.00049895,7]
[408430367,1773600645388,-116891.4694286,0.00049895,7]
[408430372,1773600645424,-7383.54,0.00049895,7]
[408430373,1773600645435,-107220.00000002,0.00049895,7]
[408430375,1773600645446,-294614.74359293,0.00049895,7]
[408430516,1773601359607,10000.01,9.5e-05,3]
[408430517,1773601359630,10000.01,9.5e-05,3]
[408430518,1773601359653,525.45963382,9.5e-05,3]
[408430520,1773601653131,-410.42869957,0.00013,7]
[408430522,1773601759127,-89.57130043,0.00013,7]
[408430523,1773601759149,-183.03508203,0.000143,2]
[408430524,1773601759170,-600.0,0.000143,2]
[408430545,1773601831557,-5000.00730125,0.000162,5]
[408430546,1773601831568,-2500.0,0.0001655,2]
[408430547,1773601831578,-195.0,0.0001677,2]
[408430548,1773601831589,-190.57135588,0.000169,2]
[408430549,1773601831599,-518.0,0.00017,2]
[408430550,1773601831611,-2500.0,0.000172,2]
[408430551,1773601831620,-2500.0,0.000172,2]
[408430552,1773601831630,-2500.0,0.000172,2]
[408430553,1773601831641,-2500.0,0.0001782,2]
[408430554,1773601831653,-195.0,0.0001782,2]
[408430555,1773601831663,-309.63207285,0.000179,2]
[408430556,1773601831673,-309.63207285,0.000179,2]
[408430557,1773601831684,-1200.0,0.00017998,2]
[408430558,1773601831695,-13461.28537283,0.00018,5]
[408430559,1773601831705,-309.63207285,0.0001836,2]
[408430560,1773601831715,-1868.436,0.0001846,2]
[408430561,1773601831724,-177.87,0.0001846,2]
[408430563,1773601831733,-500.0,0.000186,2]
[408430564,1773601831744,-747.23546138,0.000186,2]
[408430566,1773601831755,-309.63207285,0.000186,2]
[408430568,1773601831765,-3067.55173912,0.00019,7]
[408430570,1773601831776,-176.66,0.00019034,2]
[408430572,1773601831784,-15838.36016754,0.000195,2]
[408430573,1773601831795,-657.0,0.00019899,2]
[408430574,1773601831806,-62147.8933,0.000199,2]
[408430575,1773601831816,-3672.10871519,0.000199,2]
[408430576,1773601831826,-16702.82293755,0.000199,2]
[408430577,1773601831838,-381.40300855,0.000199,2]
[408430578,1773601831848,-2000.0,0.000199,2]
[408430579,1773601831857,-272.95996386,0.00019967,2]
[408430580,1773601831867,-228.18034199,0.0001999,2]
[408430581,1773601831877,-3000.0,0.00019999,2]
[408430582,1773601831887,-500.0,0.00019999,2]
[408430583,1773601831896,-500.0,0.00019999,2]
[408430584,1773601831906,-500.0,0.00019999,2]
[408430585,1773601831915,-500.0,0.00019999,2]
[408430586,1773601831925,-640.28,0.00019999,2]
[408430587,1773601831934,-500.0,0.00019999,2]
[408430588,1773601831943,-210.17605177,0.00019999,2]
[408430589,1773601831954,-500.0,0.00019999,2]
[408430590,1773601831964,-559.22852894,0.00019999,2]
[408430591,1773601831974,-500.0,0.0002,14]
[408430592,1773601831983,-371462.45965709,0.0002,2]
[408430593,1773601832053,-353.5969411,0.0002,2]
[408430600,1773601837532,-1260.0,0.000199,2]
[408430601,1773601837544,-110.6687,0.000199,2]
[408430602,1773601837554,-845.817185,0.0002,2]
[408430603,1773601837587,-454.83873275,0.0002,2]
[408430604,1773601837598,-1641.97286671,0.0002,2]
[408430605,1773601837613,-509.28842723,0.0002,2]
[408430606,1773601837625,-583.50879618,0.0002,2]
[408430607,1773601837636,-1306.70278686,0.0002,2]
[408430608,1773601837749,-48477.96105888,0.0002,2]
[408430667,1773601839942,-2316.21,0.0002,2]
[408430668,1773601839954,-343.024,0.0002,2]
[408430669,1773601840154,-6849.59165372,0.0002,2]
[408430673,1773601842888,-814.39336048,0.0002,2]
[408430720,1773601845728,-13985.86908728,0.0002,2]
[408430776,1773602459198,1323.0,9.468e-05,2]
[408430777,1773602459402,1323.0,9.966e-05,2]
[408430778,1773602459625,1323.0,0.00010465,2]
[408430779,1773602459875,1323.0,0.00010963,2]
[408430780,1773602460207,1323.0,0.00011461,2]
[408430783,1773602957127,-1323.0,0.0001196,2]
[408430784,1773602957151,-1323.0,0.00012458,2]
[408430785,1773602957171,-1323.0,0.00012956,2]
[408430786,1773602957196,-776.51306085,0.00013455,2]
[408430800,1773603031639,-546.48693915,0.00013455,2]
[408430801,1773603031648,-1323.0,0.00013953,2]
[408430802,1773603031658,-776.50898148,0.00014451,2]
[408430803,1773603031693,-546.49101852,0.00014451,2]
[408430804,1773603031703,-1323.0,0.0001495,2]
[408430805,1773603031713,-250.0,0.00015,2]
[408430806,1773603031722,-1200.0,0.00015447,2]
[408430807,1773603031733,-1323.0,0.00015448,2]
[408430808,1773603031743,-300.0,0.00015945,2]
[408430809,1773603031752,-1323.0,0.00015946,2]
[408430810,1773603031762,-250.0,0.00015987,2]
[408430811,1773603031773,-1106.53049357,0.00016128,2]
[408430812,1773603031783,-151.0,0.00016128,2]
[408430813,1773603031794,-199.0,0.00016194,2]
[408430814,1773603031803,-1323.0,0.00016445,2]
[408430815,1773603031813,-166.66,0.00016712,2]
[408430816,1773603031822,-1323.0,0.00016943,2]